bitfinex/quotes_ETHUSD_20220310
["timestamp","ask_amount","ask_price","bid_price","bid_amount"]
[1646928042539,1.02339195,2597.9,2597.6,0.00364093]
[1646928042741,2.94240515,2597.9,2597.6,0.00364093]
[1646928042943,1.9190132,2597.9,2597.6,0.00364093]
[1646928043141,1.9190132,2597.9,2597.6,0.00728186]
[1646928043387,1.9190132,2597.9,2597.6,0.00364093]
[1646928043589,1.02346869,2597.8,2597.6,0.00364093]
[1646928044388,1.02346869,2597.8,2597.6,0.00327493]
[1646928045290,2.9190132,2597.9,2597.6,0.00327493]
[1646928045492,3.3028132,2597.9,2597.6,0.00327489]
[1646928045694,1.02491908,2597.8,2597.6,0.00327489]
[1646928045889,1.40871908,2597.8,2597.6,0.00327489]
[1646928046090,1.40871908,2597.7,2597.6,0.00327489]
[1646928046593,1.60101908,2597.7,2597.6,0.00654978]
[1646928046890,58.3838,2597.6,2597.1,0.01310187]
[1646928047138,0.3838,2597.4,2597.1,0.01310187]
[1646928047340,1.3838,2597.2,2597.1,0.01310187]
[1646928047641,2.40871908,2597.2,2597.1,0.01310187]
[1646928047839,0.3838,2597.0,2596.9,0.0008]
[1646928048046,1.40871908,2597.0,2596.9,0.0008]
[1646928050889,1.02491908,2597.0,2596.9,0.0008]
[1646928051097,2.8899,2597.1,2596.9,0.0008]
[1646928052796,2.8899,2597.1,2596.9,0.00464033]
[1646928053799,2.8899,2597.1,2596.9,0.00848066]
[1646928053997,2.8899,2597.1,2596.9,0.00464033]
[1646928055035,2.8899,2597.1,2596.9,0.00814543]
[1646928055236,2.8899,2597.1,2596.9,0.0043051]
[1646928056238,2.8899,2597.1,2596.9,0.92939829]
[1646928056439,2.8899,2597.1,2596.9,0.00402551]
[1646928057438,2.8899,2597.1,2596.9,0.00725102]
[1646928057637,2.8899,2597.1,2596.9,0.00402551]
[1646928058690,2.8899,2597.1,2596.9,0.00406776]
[1646928059791,2.8899,2597.1,2596.9,0.00739036]
[1646928059991,2.8899,2597.1,2596.9,0.0041226]
[1646928061694,1.02664162,2597.0,2596.9,0.0041226]
[1646928062135,1.02664162,2597.0,2596.9,0.00743903]
[1646928062335,1.02664162,2597.0,2596.9,0.00411643]
[1646928063844,1.02664162,2597.0,2596.9,0.0008]
[1646928064240,2.8899,2597.1,2596.9,0.0008]
[1646928064646,2.8899,2597.1,2596.9,0.07248231]
[1646928064942,2.8899,2597.1,2597.0,0.54332892]
[1646928065542,0.9633,2597.2,2597.0,0.54332892]
[1646928065799,0.9633,2597.2,2597.1,0.54332892]
[1646928065988,0.9633,2597.2,2597.0,0.54332892]
[1646928066588,0.9633,2597.2,2597.1,0.54332892]
[1646928066787,0.9633,2597.2,2596.9,0.00421812]
[1646928066989,0.9633,2597.2,2597.0,0.00341737]
[1646928067192,0.9633,2597.2,2597.1,1.17769723]
[1646928067389,0.9633,2597.2,2597.1,1.72102615]
[1646928067592,0.9633,2597.2,2597.1,0.54332892]
[1646928068089,0.9633,2597.2,2597.0,0.00341737]
[1646928068290,0.9633,2597.2,2597.0,0.00341741]
[1646928068897,0.9633,2597.2,2597.0,1.05961959]
[1646928069094,0.9633,2597.2,2597.1,0.54332892]
[1646928071441,0.9633,2597.2,2597.1,0.54215883]
[1646928071839,0.9633,2597.2,2597.0,0.00344486]
[1646928072739,0.9633,2597.2,2597.0,0.54560369]
[1646928072940,0.9633,2597.2,2597.0,0.00344486]
[1646928073142,1.92922146,2597.4,2597.0,0.00342204]
[1646928073393,1.02783626,2597.3,2597.0,0.00342204]
[1646928074000,1.02783626,2597.3,2596.9,0.0008]
[1646928074194,1.02783626,2597.3,2597.0,0.0032872]
[1646928075493,1.02783626,2597.3,2597.0,0.0065744]
[1646928075693,1.02783626,2597.3,2597.0,0.0032872]
[1646928075893,1.02783626,2597.3,2597.0,0.54556795]
[1646928076700,1.02783626,2597.3,2597.0,0.54886083]
[1646928076895,1.02783626,2597.3,2597.0,0.00329288]
[1646928077138,1.02783626,2597.3,2596.9,0.24576621]
[1646928077340,1.02783626,2597.3,2597.0,0.55576967]
[1646928077939,1.02783626,2597.3,2597.1,1.196033]
[1646928078139,1.02783626,2597.3,2597.1,2.158963]
[1646928078341,1.02783626,2597.3,2597.1,0.96293]
[1646928078543,1.02783626,2597.3,2597.0,0.07072967]
[1646928078746,1.02783626,2597.3,2597.1,0.5558725]
[1646928080346,1.03034959,2597.3,2597.1,0.5558725]
[1646928080797,0.00251333,2597.3,2597.2,0.08182786]
[1646928080990,0.08893546,2597.6,2597.2,0.63770036]
[1646928081193,0.62197067,2597.9,2597.7,23.0]
[1646928081390,0.12214187,2598.2,2598.1,0.87058884]
[1646928081391,0.29056434,2598.2,2598.1,0.87058884]
[1646928081589,0.29056434,2598.2,2598.0,1.03226713]
[1646928081792,0.29056434,2598.2,2597.4,0.08319917]
[1646928082192,0.29056434,2598.2,2597.7,0.08721139]
[1646928082389,0.16842247,2598.2,2597.7,0.08721139]
[1646928082790,0.12214187,2598.2,2597.7,0.08721139]
[1646928082990,0.12214187,2598.2,2597.6,3.83227939]
[1646928082991,0.96264,2598.1,2597.6,3.83227939]
[1646928083395,0.06028439,2598.0,2597.6,3.98621239]
[1646928083795,0.06028439,2598.0,2597.6,3.83227939]
[1646928083997,1.02300439,2598.0,2597.1,2.88808]
[1646928084197,1.02300439,2598.0,2597.0,1.189]
[1646928084198,5.48532167,2597.9,2597.0,1.189]
[1646928084401,0.06339668,2597.7,2596.9,0.0008]
[1646928084648,0.44719668,2597.7,2596.9,0.0008]
[1646928084849,0.05527224,2597.6,2596.9,0.0008]
[1646928085248,0.05911848,2597.6,2597.0,0.00384712]
[1646928085851,0.96304,2597.5,2597.0,0.00384712]
[1646928086149,0.06158928,2597.3,2597.1,0.963]
[1646928086550,0.06158928,2597.3,2597.0,0.00384697]
[1646928086955,0.9631,2597.2,2597.0,0.00384697]
[1646928087152,0.05575939,2597.1,2597.0,0.00384697]
[1646928087550,3.93955939,2597.1,2597.0,0.00384697]
[1646928087749,3.93955939,2597.1,2597.0,0.00384683]
[1646928088150,4.13205939,2597.1,2597.0,0.00384683]
[1646928088406,1.57899563,2597.1,2597.0,0.00384683]
[1646928088808,5.07899563,2597.1,2597.0,0.00384683]
[1646928089009,5.58446336,2597.1,2596.9,0.00464683]
[1646928089208,4.77899563,2597.0,2596.9,0.00464683]
[1646928089511,1.73999563,2597.0,2596.9,0.00464683]
[1646928089906,0.8448,2597.0,2596.9,0.00464683]
[1646928090111,4.12990336,2597.1,2596.9,0.0008]
[1646928090112,2.93470773,2597.1,2596.9,0.0008]
[1646928090707,2.93470773,2597.1,2596.1,0.96325]
[1646928090908,0.3838,2597.0,2596.1,0.91405]
[1646928091110,1.34703,2597.0,2596.1,0.91405]
[1646928091508,0.96323,2597.0,2596.1,0.91405]
[1646928092146,4.46323,2597.0,2596.0,3.31217404]
[1646928092342,0.3838,2596.9,2596.0,1.38580404]
[1646928092544,0.3838,2596.7,2596.0,1.38580404]
[1646928092745,0.3838,2596.7,2596.0,1.00080404]
[1646928093548,0.3838,2596.7,2596.2,0.00382882]
[1646928094049,0.96336,2596.6,2596.2,0.00382882]
[1646928094653,0.12214187,2596.7,2596.2,0.00382882]
[1646928094850,0.12214187,2596.7,2596.3,0.00382876]
[1646928096090,0.12214187,2596.7,2596.4,0.00382874]
[1646928096394,1.08543187,2596.7,2596.5,0.96329]
[1646928097392,1.08543187,2596.7,2596.5,0.96711869]
[1646928098092,1.08543187,2596.7,2596.5,0.84497682]
[1646928098396,1.08543187,2596.7,2596.5,0.84820609]
[1646928098597,1.08543187,2596.7,2596.5,0.8443774]
[1646928099747,1.08543187,2596.7,2596.2,1.8765]
[1646928099748,0.25659423,2596.4,2596.2,1.8765]
[1646928101043,0.25659423,2596.4,2596.3,0.56653295]
[1646928107544,0.25659423,2596.4,2596.3,0.41653295]
[1646928112197,0.25256826,2596.4,2596.3,0.41653295]
[1646928118398,0.0925612,2596.5,2596.4,51.0]
[1646928118600,0.0925612,2596.5,2596.4,1.982563]
[1646928118798,0.0925612,2596.5,2596.4,0.96303]
[1646928118799,0.1388418,2596.5,2596.4,0.96303]
[1646928118998,0.1405542,2596.5,2596.4,0.84088813]
[1646928119698,0.1868348,2596.5,2596.4,0.84088813]
[1646928119896,0.05437246,2596.5,2596.4,0.84088813]
[1646928120501,0.05437246,2596.5,2596.4,12.58088813]
[1646928120699,0.10065306,2596.5,2596.4,13.28709156]
[1646928120899,0.48154193,2597.0,2596.5,55.5]
[1646928121101,0.35641667,2597.7,2597.6,1.12988152]
[1646928121299,0.05304407,2598.3,2597.6,1.12988152]
[1646928121499,0.70269563,2598.5,2597.6,1.12988152]
[1646928121697,0.70269563,2598.5,2597.7,0.3318439]
[1646928121698,0.05750202,2598.5,2597.7,0.3318439]
[1646928121899,0.10378262,2598.5,2597.7,0.3318439]
[1646928122141,0.10378262,2598.5,2597.7,0.25]
[1646928122341,0.10378262,2598.5,2597.9,0.96253]
[1646928122543,0.0022042,2598.2,2597.9,1.03422622]
[1646928122741,0.0022042,2598.2,2597.9,1.04182956]
[1646928123146,0.0022042,2598.2,2597.9,0.96253]
[1646928124347,0.0022042,2598.2,2597.9,2.88746]
[1646928124543,0.0022042,2598.2,2597.9,2.87687057]
[1646928125546,0.0022042,2598.2,2597.8,1.92506]
[1646928126215,0.0022042,2598.2,2597.7,1.2128]
[1646928126216,0.05918743,2598.0,2597.7,1.2128]
[1646928126418,0.05926589,2597.9,2597.7,0.9628]
[1646928127419,0.06293852,2597.9,2597.7,0.9628]
[1646928127821,0.99502399,2597.8,2597.7,0.9628]
[1646928128023,0.05677785,2597.7,2597.4,1.92539]
[1646928128222,0.05763861,2597.5,2597.2,1.92582]
[1646928128525,0.05763861,2597.5,2597.2,1.9241076]
[1646928128821,0.10391921,2597.5,2597.2,1.9241076]
[1646928129021,0.99526689,2597.4,2597.2,1.9241076]
[1646928130658,0.05889286,2597.2,2596.8,1.00350606]
[1646928130855,3.8838,2597.3,2596.8,1.00350606]
[1646928130856,0.05762417,2596.9,2596.8,1.00350606]
[1646928131061,0.05762417,2596.9,2596.8,1.5709772]
[1646928131255,0.05762417,2596.9,2596.8,1.56747114]
[1646928131854,0.44142417,2596.9,2596.8,1.00338201]
[1646928132457,0.44142417,2596.9,2596.8,1.0]
[1646928132458,0.05762417,2596.9,2596.8,1.0]
[1646928132657,0.00338109,2597.2,2596.8,1.56410773]
[1646928132954,0.00338109,2597.2,2596.9,0.56410773]
[1646928133401,0.00677757,2597.2,2596.9,0.56410773]
[1646928133610,0.06160184,2597.2,2596.9,0.56410773]
[1646928134002,0.06160184,2597.2,2596.9,1.52712773]
[1646928134201,0.06160184,2597.2,2596.9,0.96302]
[1646928134601,1.02457003,2597.2,2596.9,0.96302]
[1646928135202,0.96636467,2597.2,2596.9,0.96302]
[1646928135402,0.0465451,2597.1,2596.9,0.96302]
[1646928137057,0.96940398,2597.2,2597.0,0.56399934]
[1646928137058,0.00303931,2597.2,2597.0,0.56399934]
[1646928137257,0.00303931,2597.2,2597.0,1.57099934]
[1646928137459,0.00303931,2597.2,2597.1,0.56399934]
[1646928138257,0.00306716,2597.2,2597.1,1.52687934]
[1646928139461,0.00306714,2597.3,2597.2,1.02983874]
[1646928139662,0.00306714,2597.3,2597.2,1.59383808]
[1646928139862,0.00087696,2597.3,2597.2,1.59383808]
[1646928140063,0.00087696,2597.3,2597.2,1.66413663]
[1646928140262,0.00087696,2597.3,2597.2,13.86513663]
[1646928140463,0.04645004,2598.8,2597.6,11.74]
[1646928140664,0.04645004,2598.8,2598.6,1.2144636]
[1646928140665,0.99946743,2598.7,2598.6,1.2144636]
[1646928140903,0.99946743,2598.7,2598.1,1.9246811]
[1646928141102,0.99946743,2598.6,2598.1,2.1746811]
[1646928141302,0.05902982,2599.2,2598.2,0.07338851]
[1646928141507,0.99887985,2599.1,2598.3,1.02402491]
[1646928141806,0.99887985,2599.1,2598.7,1.06053495]
[1646928142002,0.05160663,2599.4,2598.7,1.06053495]
[1646928142201,0.99778324,2599.3,2598.7,1.06053495]
[1646928142400,0.99778324,2599.3,2598.7,1.13311821]
[1646928143003,0.99778324,2599.3,2599.2,0.96208]
[1646928143202,0.01021394,2599.6,2599.5,0.88476571]
[1646928143405,1.00635665,2599.6,2599.5,0.88476571]
[1646928143604,1.00635665,2599.6,2599.2,0.25]
[1646928143804,0.99614271,2599.5,2599.2,0.25]
[1646928144009,0.99614271,2599.5,2599.3,1.92395]
[1646928144205,0.01021394,2599.6,2599.4,0.96201]
[1646928144406,0.01021394,2599.6,2599.5,0.96202]
[1646928144845,0.98412152,2599.6,2599.4,0.96201]
[1646928145046,0.97390758,2599.5,2599.2,2.17402]
[1646928145246,0.97390758,2599.5,2599.2,1.92402]
[1646928145447,0.97390758,2599.5,2599.2,2.88614]
[1646928146049,1.93605758,2599.5,2599.2,1.92402]
[1646928146348,0.05400552,2599.3,2599.2,1.92402]
[1646928146553,1.0279131,2599.3,2599.2,1.92402]
[1646928147150,1.0279131,2599.3,2599.2,2.88615]
[1646928147350,0.00382278,2599.5,2599.2,2.88615]
[1646928147550,0.04664948,2599.4,2599.2,2.88615]
[1646928147850,0.05047231,2599.4,2599.2,2.88615]
[1646928148310,0.05047231,2599.4,2598.7,0.25]
[1646928148311,1.35720978,2599.3,2598.7,0.25]
[1646928148506,0.05558636,2599.1,2598.7,0.25]
[1646928148702,0.05558636,2599.1,2598.1,0.96256]
[1646928148903,1.4057417,2599.0,2598.1,0.25]
[1646928149107,0.06087972,2598.7,2598.1,0.25]
[1646928149304,0.44467972,2598.7,2598.1,0.25]
[1646928149504,0.3838,2598.7,2598.1,1.13325849]
[1646928149705,0.05773276,2598.6,2598.1,0.25]
[1646928149905,0.05773276,2598.6,2598.2,0.96254]
[1646928150408,0.96590648,2598.5,2598.2,0.96254]
[1646928150605,0.04834539,2598.4,2598.1,0.153898]
[1646928151006,0.04834539,2598.4,2598.1,1.116458]
[1646928151406,0.04834539,2598.4,2598.2,0.9625]
[1646928151907,0.9659065,2598.5,2598.1,1.21256]
[1646928152547,0.00339628,2598.4,2598.1,1.21256]
[1646928152747,0.00339628,2598.4,2598.2,0.96248]
[1646928153657,0.00680835,2598.4,2598.2,0.96248]
[1646928153856,0.00341207,2598.4,2598.2,13.16348]
[1646928154055,0.00341207,2598.4,2598.3,1.99605767]
[1646928154264,0.00341207,2598.4,2598.3,14.61953037]
[1646928154457,0.05165537,2599.4,2598.6,0.3838]
[1646928154656,0.01021394,2599.6,2598.9,1.41350531]
[1646928154857,0.01021394,2599.6,2599.0,12.6496396]
[1646928155057,0.01021394,2599.6,2599.3,12.1238]
[1646928155257,0.01021394,2599.6,2599.4,13.36129707]
[1646928155457,0.01021394,2599.6,2599.5,0.0778071]
[1646928155656,0.01021394,2599.6,2599.5,15.7788071]
[1646928155914,0.01364013,2600.0,2599.7,0.06825501]
[1646928156111,0.01364013,2600.0,2599.9,11.74]
[1646928156311,0.05016788,2601.0,2600.9,1.07992188]
[1646928156712,0.9748897,2601.1,2600.9,1.07992188]
[1646928156713,0.002132,2601.1,2600.9,1.07992188]
[1646928156915,0.002132,2601.1,2600.9,2.50231188]
[1646928157211,0.002132,2601.1,2600.9,6.00231188]
[1646928157410,0.06016732,2601.9,2601.6,1.02598998]
[1646928157613,0.05254935,2601.7,2601.5,0.25]
[1646928157811,0.97130677,2601.6,2601.1,0.461]
[1646928158012,0.0480347,2602.0,2601.1,0.25]
[1646928158013,0.97130677,2601.5,2601.1,0.25]
[1646928158214,0.4318347,2602.0,2601.1,0.25]
[1646928158215,0.05006442,2601.7,2601.1,0.25]
[1646928158414,0.43504519,2601.5,2600.6,13.4531]
[1646928158613,0.05059451,2601.2,2600.6,11.78]
[1646928159012,0.05059451,2601.2,2600.9,1.03373518]
[1646928159213,0.04966655,2601.5,2600.9,1.03373518]
[1646928159418,0.19899104,2602.1,2600.9,1.03373518]
[1646928159656,0.05346344,2601.7,2600.9,0.96155]
[1646928159855,0.05346344,2601.7,2600.7,4.0442712]
[1646928159856,15.5,2601.5,2600.6,13.43081405]
[1646928160059,0.00248993,2601.2,2600.9,0.25]
[1646928160257,0.00248993,2601.2,2601.0,0.96147]
[1646928160456,0.00248993,2601.2,2600.9,0.25]
[1646928160856,0.05781758,2601.2,2601.0,1.92294]
[1646928161261,0.05915947,2601.2,2601.0,1.92294]
[1646928164309,0.00383182,2601.2,2601.0,1.92294]
[1646928164711,0.00669762,2601.2,2601.0,1.92294]
[1646928164906,0.0028658,2601.2,2601.0,1.92294]
[1646928165909,0.0057316,2601.2,2601.0,1.92294]
[1646928166109,0.0028658,2601.2,2601.1,0.96134]
[1646928166308,0.0028658,2601.2,2601.0,1.92294]
[1646928167154,0.05728974,2602.0,2601.4,1.12550285]
[1646928167356,0.05728974,2602.0,2601.4,0.96142]
[1646928167953,1.01870284,2602.0,2601.4,0.96142]
[1646928168156,0.96135,2601.8,2601.4,0.96142]
[1646928168360,0.96470754,2601.8,2601.4,0.96142]
[1646928169360,0.00335758,2601.7,2601.4,0.96142]
[1646928170160,1.97792528,2601.7,2601.4,0.96142]
[1646928170359,1.92618758,2601.7,2601.4,0.96142]
[1646928170559,0.04827295,2601.6,2601.4,0.96142]
[1646928171407,0.0033576,2601.7,2601.4,0.96142]
[1646928172002,0.00349699,2601.6,2601.4,0.96142]
[1646928173102,0.00699398,2601.6,2601.4,0.96142]
[1646928173304,0.00349699,2601.6,2601.4,0.96142]
[1646928173507,0.06023864,2601.5,2601.3,0.25]
[1646928174753,0.06023864,2601.5,2601.3,1.21141]
[1646928174953,0.06023864,2601.5,2601.3,0.96141]
[1646928175158,0.06023864,2601.5,2601.2,1.92283]
[1646928175554,0.06350929,2601.5,2601.2,1.92283]
[1646928176556,0.06350929,2601.5,2601.4,1.11565499]
[1646928176756,0.06350931,2601.5,2601.4,1.11565499]
[1646928177254,0.00327067,2601.5,2601.2,1.92283]
[1646928177661,0.00327067,2601.5,2601.3,0.96136]
[1646928178056,0.00327063,2601.6,2601.3,0.96136]
[1646928179107,0.00658449,2601.6,2601.3,0.96136]
[1646928179309,0.00331386,2601.6,2601.3,0.96136]
[1646928179806,0.00331386,2601.6,2601.2,2.14924745]
[1646928180219,0.00662772,2601.6,2601.2,2.14924745]
[1646928180409,0.00331386,2601.6,2601.3,0.96136]
[1646928180809,0.00331386,2601.6,2601.3,4.46136]
[1646928181410,0.00331386,2601.6,2601.3,5.42266]
[1646928181607,0.05151332,2602.0,2601.3,4.46136]
[1646928181809,0.05169501,2602.4,2601.5,11.74]
[1646928182067,0.05082234,2602.6,2602.3,1.11178493]
[1646928182257,0.192,2603.2,2602.3,2.07264493]
[1646928182459,0.24258455,2603.3,2602.8,1.21259463]
[1646928182658,0.62638455,2603.3,2602.8,1.21259463]
[1646928182862,0.05996592,2603.1,2602.8,1.21259463]
[1646928183058,0.89289543,2603.0,2602.8,1.21259463]
[1646928183259,0.0479269,2603.2,2602.8,2.17343463]
[1646928183458,1.0,2603.5,2602.9,0.96072]
[1646928183659,3.37756313,2603.8,2603.0,0.25]
[1646928183660,0.8927993,2603.4,2603.0,0.25]
[1646928183858,16.95860131,2604.1,2603.0,0.25]
[1646928183859,16.2136738,2604.1,2603.0,0.25]
[1646928184059,0.01319574,2603.4,2603.0,0.25]
[1646928184262,0.01319574,2603.4,2603.0,4.09247]
[1646928184463,0.8698889,2603.3,2603.0,2.17133]
[1646928185061,0.01319574,2603.4,2603.0,2.17133]
[1646928185263,0.0032993,2603.3,2603.0,2.17133]
[1646928186608,0.00329903,2603.3,2603.0,2.17133]
[1646928187610,0.00659806,2603.3,2603.0,2.17133]
[1646928187809,0.00329903,2603.3,2603.0,2.17133]
[1646928188416,0.01319415,2603.7,2603.1,0.96064]
[1646928188720,0.01319415,2603.7,2603.3,0.07629586]
[1646928188915,0.0263883,2603.7,2603.4,0.461]
[1646928189116,0.01319415,2603.7,2603.4,0.461]
[1646928189315,0.00655195,2603.7,2603.4,0.461]
[1646928189565,0.00655195,2603.7,2603.5,1.92083]
[1646928189753,0.00655195,2603.7,2603.4,1.92073]
[1646928189951,0.00655195,2603.7,2603.0,0.25]
[1646928190152,0.00655195,2603.7,2602.5,11.52]
[1646928190153,0.3838,2603.5,2602.5,11.52]
[1646928190352,0.3838,2603.2,2602.1,0.25]
[1646928190557,0.96107,2603.1,2602.1,0.25]
[1646928190753,0.96107,2603.1,2602.1,1.29502529]
[1646928190951,0.96107,2603.1,2602.1,2.25602529]
[1646928191155,0.96107,2603.1,2602.5,0.96107]
[1646928191554,0.00059818,2603.0,2602.5,0.96107]
[1646928191754,0.96167818,2603.0,2602.5,0.96107]
[1646928191955,0.96108,2603.0,2602.5,0.96107]
[1646928192154,0.03041944,2602.8,2602.5,0.96107]
[1646928192353,0.04345096,2603.0,2602.5,0.96107]
[1646928192954,0.96101,2602.9,2602.5,0.96107]
[1646928193158,0.04345096,2603.0,2602.5,1.21107]
[1646928193401,5.14848,2603.8,2602.5,1.21107]
[1646928193402,0.0443166,2603.2,2602.5,1.21107]
[1646928193602,0.0443166,2603.2,2602.9,1.10200349]
[1646928193801,0.192,2603.6,2603.0,0.9607]
[1646928194001,0.19583323,2603.8,2603.0,0.9607]
[1646928194200,0.96453323,2603.8,2603.0,0.9607]
[1646928194402,0.04449489,2603.7,2603.0,0.9607]
[1646928194602,0.96453323,2603.8,2603.5,0.91662225]
[1646928194603,1.92141,2603.6,2603.5,0.91662225]
[1646928196400,1.92141,2603.6,2603.4,1.1574]
[1646928196601,1.92141,2603.6,2603.4,0.9606]
[1646928197058,1.92141,2603.6,2603.3,1.92118]
[1646928197649,1.92141,2603.6,2603.3,3.02568211]
[1646928199657,1.92141,2603.6,2603.3,3.09773041]
[1646928199857,1.92141,2603.6,2603.3,1.40440349]
[1646928200457,1.92141,2603.6,2603.3,0.29990138]
[1646928201504,1.92141,2603.6,2603.3,1.3143627]
[1646928202003,1.92141,2603.6,2603.3,1.6981627]
[1646928202306,0.9639539,2603.8,2603.3,1.6981627]
[1646928202307,0.0035103,2603.8,2603.4,0.08049088]
[1646928202504,0.0035103,2603.8,2603.4,12.66529088]
[1646928202709,0.0035103,2603.8,2603.5,5.87645114]
[1646928202904,0.0035103,2603.8,2603.7,0.0769511]
[1646928203103,0.0035103,2603.8,2603.7,0.5379511]
[1646928203304,0.0035103,2603.8,2603.7,2.4584111]
[1646928203508,0.00351043,2603.8,2603.7,2.4584111]
[1646928204752,0.0035105,2603.9,2603.7,3.4187211]
[1646928204952,0.0035105,2603.9,2603.8,0.07161772]
[1646928205954,0.00327399,2604.0,2603.9,0.96028]
[1646928207057,0.02264775,2604.1,2603.9,0.96028]
[1646928207459,0.02264775,2604.1,2604.0,0.08696312]
[1646928208056,0.02592168,2604.1,2604.0,0.08696312]
[1646928208301,0.02264773,2604.1,2604.0,0.08696312]
[1646928208912,0.01309374,2604.5,2604.2,0.08777892]
[1646928209109,0.01309374,2604.5,2604.3,0.0731332]
[1646928209307,0.3843,2604.9,2604.5,0.0715327]
[1646928209308,0.01332272,2604.6,2604.5,0.0715327]
[1646928209507,0.01332272,2604.6,2604.5,0.5325327]
[1646928210209,0.01332272,2604.6,2604.5,12.2725327]
[1646928210408,0.19281061,2605.5,2605.0,1.20115092]
[1646928210609,1.78049676,2605.4,2605.0,1.45115092]
[1646928210810,1.91991,2605.6,2605.0,1.45115092]
[1646928211010,0.82019666,2605.5,2605.0,1.45115092]
[1646928211209,3.6918,2605.8,2605.0,1.45115092]
[1646928211420,0.82026109,2605.7,2605.0,1.52680376]
[1646928211610,0.82026109,2605.6,2605.0,1.52680376]
[1646928211810,3.6918,2606.0,2605.1,2.45034342]
[1646928211811,0.82026109,2605.9,2605.1,2.45034342]
[1646928212072,2.71381061,2606.2,2605.2,0.08044408]
[1646928212259,0.82012095,2606.1,2605.3,0.461]
[1646928212660,0.82012095,2606.1,2605.6,0.3838]
[1646928212864,0.01891671,2606.5,2605.9,0.95958]
[1646928212865,0.95956,2606.4,2605.9,0.95958]
[1646928213065,0.01537195,2606.2,2605.9,1.29295695]
[1646928213365,0.01537195,2606.2,2606.0,0.07852582]
[1646928213765,0.01537195,2606.2,2605.9,0.25]
[1646928213766,0.81915793,2606.1,2605.9,0.25]
[1646928214566,0.81915793,2606.0,2605.9,0.25]
[1646928214767,0.00384335,2606.2,2605.9,0.25]
[1646928214965,0.82264257,2606.2,2605.9,1.20968]
[1646928215167,0.00384335,2606.2,2605.9,1.20968]
[1646928215366,0.00384343,2606.1,2605.9,1.20968]
[1646928215566,0.00384343,2606.1,2605.9,1.20333727]
[1646928216202,0.00384343,2606.1,2605.9,0.24365727]
[1646928216509,0.00384343,2606.1,2605.3,0.25]
[1646928216510,0.95998,2606.0,2605.3,0.25]
[1646928216703,3.5,2605.9,2605.3,0.25]
[1646928216903,0.81791742,2605.8,2605.3,0.25]
[1646928217104,3.8838,2605.7,2605.3,1.21003]
[1646928217303,0.3838,2605.7,2605.3,1.21003]
[1646928217503,0.96006,2605.7,2605.3,1.21003]
[1646928217903,0.91328035,2605.7,2605.3,1.21003]
[1646928218508,3.5,2605.6,2605.3,1.21003]
[1646928218706,1.29708035,2605.7,2605.3,1.21003]
[1646928218907,1.34382,2605.6,2605.3,0.25]
[1646928219110,1.34704037,2605.6,2605.3,0.25]
[1646928219954,1.34704037,2605.6,2605.0,0.47786835]
[1646928220156,1.34704039,2605.6,2605.0,0.47786835]
[1646928220355,1.34704039,2605.6,2605.3,0.95998]
[1646928220356,0.0525415,2605.5,2605.3,0.95998]
[1646928221358,0.05586021,2605.5,2605.3,0.95998]
[1646928222358,0.04676095,2605.3,2604.7,0.384]
[1646928222557,0.04529108,2605.0,2604.7,0.384]
[1646928223057,0.04529108,2605.0,2604.6,0.3194]
[1646928223704,0.04607242,2604.9,2604.7,0.9530153]
[1646928223907,0.00331896,2605.0,2604.7,0.9530153]
[1646928224105,0.00331896,2605.0,2604.8,0.07954332]
[1646928224606,0.00331896,2605.0,2604.8,1.91976]
[1646928224806,0.00331896,2605.0,2604.9,0.08467916]
[1646928225006,0.00350562,2605.0,2604.9,0.08467916]
[1646928226307,0.0035056,2605.1,2604.9,0.08467916]
[1646928226507,0.0035056,2605.1,2604.9,1.04457916]
[1646928226708,0.0035056,2605.1,2604.9,0.07084996]
[1646928227354,0.00701117,2605.1,2604.9,0.07084996]
[1646928227556,0.00350557,2605.1,2604.9,0.07084996]
[1646928228353,0.00350557,2605.1,2605.0,0.96]
[1646928228558,0.00677109,2605.1,2605.0,0.96]
[1646928228757,0.00326552,2605.1,2605.0,0.96]
[1646928228958,0.00326552,2605.1,2605.0,1.1518]
[1646928228959,6.552e-05,2605.1,2605.0,1.1518]
[1646928229159,0.01306013,2605.5,2605.1,67.0707085]
[1646928229358,0.01306013,2605.5,2605.3,0.95959]
[1646928229562,0.01306013,2605.5,2605.4,4.1528]
[1646928229959,0.00101061,2606.2,2605.4,4.1528]
[1646928230159,1.1997,2606.4,2605.7,0.9596264]
[1646928230359,0.01891671,2606.5,2605.8,0.95962]
[1646928230561,0.0179061,2606.5,2605.9,0.95962]
[1646928230810,0.0179061,2606.5,2606.0,4.04662258]
[1646928231009,0.0179061,2606.5,2606.1,0.54464414]
[1646928231209,0.0179061,2606.5,2606.1,0.6528]
[1646928231408,0.0179061,2606.5,2606.3,0.07892441]
[1646928231612,0.0179061,2606.5,2606.4,0.08203832]
[1646928231909,0.0179061,2606.5,2606.4,0.54303832]
[1646928233716,0.0179061,2606.5,2606.4,4.04303832]
[1646928233918,0.0179061,2606.5,2606.4,4.23483832]
[1646928234117,6.1e-06,2606.5,2606.4,15.97483832]
[1646928234323,0.00979329,2607.0,2606.5,78.1238]
[1646928234569,0.00979329,2607.0,2606.6,16.34710481]
[1646928234764,0.00979329,2607.0,2606.8,0.08990328]
[1646928234958,0.00979329,2607.0,2606.9,0.6527]
[1646928235358,0.00979329,2607.0,2606.9,0.461]
[1646928235559,0.00979329,2607.0,2606.9,0.95896]
[1646928235958,0.00101061,2607.8,2607.1,1.0979394]
[1646928236158,1.91849,2607.6,2607.1,1.3479394]
[1646928236558,0.67372,2607.9,2607.1,1.2092]
[1646928236757,0.05210996,2607.8,2607.1,0.25]
[1646928237157,0.05210996,2607.8,2607.3,0.9592]
[1646928237365,0.67372,2607.9,2607.3,0.9592]
[1646928237366,0.28992,2607.9,2607.3,0.9592]
[1646928237558,0.28992,2607.9,2607.4,1.05849191]
[1646928238162,1.91831,2607.8,2607.4,2.01758191]
[1646928238425,0.00385043,2607.7,2607.3,1.9182]
[1646928238623,0.04579145,2607.7,2607.3,1.9182]
[1646928239424,0.00385049,2607.6,2607.3,1.9182]
[1646928239626,0.96304049,2607.6,2607.3,1.9182]
[1646928240029,0.96304049,2607.6,2607.3,0.22729578]
[1646928240625,0.96676168,2607.6,2607.3,0.22729578]
[1646928240825,0.00372119,2607.6,2607.3,0.22729578]
[1646928241425,0.00372119,2607.6,2607.3,1.18641578]
[1646928241825,0.00372119,2607.6,2607.3,0.22729578]